lending/lending_fUSD_20251125
["ID","MTS","AMOUNT","RATE_DAILY","PERIOD"]
[394874275,1764045077524,-244.13576313,0.00038904,8]
[394874276,1764045077534,-506.9884173,0.00038904,8]
[394874277,1764045077543,-503.26940923,0.00038904,8]
[394874278,1764045077554,-500.0,0.00038904,8]
[394874279,1764045077563,-570.87150339,0.00038904,8]
[394874280,1764045077572,-380.70858557,0.00038904,8]
[394874281,1764045077581,-389.32964394,0.00038904,8]
[394874282,1764045077590,-500.0,0.00038904,8]
[394874283,1764045077600,-578.06422472,0.00038904,8]
[394874284,1764045077610,-193.10479873,0.00038904,8]
[394874285,1764045077619,-528.49810874,0.00038904,8]
[394874286,1764045077629,-500.0,0.00038904,8]
[394874287,1764045077639,-500.0,0.00038904,8]
[394874288,1764045077649,-500.0,0.00038904,8]
[394874289,1764045077658,-608.31730829,0.00038904,8]
[394874290,1764045077668,-500.0,0.00038904,8]
[394874291,1764045077678,-376.20981925,0.00038904,8]
[394874292,1764045077688,-500.0,0.00038904,8]
[394874293,1764045077698,-500.0,0.00038904,8]
[394874294,1764045077707,-306.9526252,0.00038904,8]
[394874295,1764045077716,-500.0,0.00038904,8]
[394874296,1764045077726,-276.96750909,0.00038904,8]
[394874297,1764045077735,-562.7582919,0.00038904,8]
[394874298,1764045077744,-500.0,0.00038904,8]
[394874299,1764045077754,-500.0,0.00038904,8]
[394874300,1764045077763,-500.0,0.00038904,8]
[394874301,1764045077772,-500.0,0.00038904,8]
[394874302,1764045077783,-500.0,0.00038904,8]
[394874303,1764045077792,-500.0,0.00038904,8]
[394874304,1764045077802,-500.0,0.00038904,8]
[394874305,1764045077812,-521.75212372,0.00038904,8]
[394874306,1764045077823,-500.0,0.00038904,8]
[394874307,1764045077832,-500.0,0.00038904,8]
[394874308,1764045077949,-188.27200747,0.00038904,8]
[394874309,1764045077961,-500.0,0.00038904,8]
[394874310,1764045077972,-500.0,0.00038904,8]
[394874311,1764045077981,-500.0,0.00038904,8]
[394874312,1764045077991,-500.0,0.00038904,8]
[394874313,1764045078002,-503.14466546,0.00038904,8]
[394874314,1764045078012,-628.84978371,0.00038904,8]
[394874315,1764045078022,-500.0,0.00038904,8]
[394874316,1764045078031,-337.38052238,0.00038904,8]
[394874317,1764045078041,-557.76694393,0.00038904,8]
[394874318,1764045078051,-256.09049984,0.00038904,8]
[394874319,1764045078060,-500.0,0.00038904,8]
[394874320,1764045078069,-500.0,0.00038904,8]
[394874321,1764045078079,-539.66331581,0.00038904,8]
[394874322,1764045078088,-455.26251761,0.00038904,2]
[394874323,1764045078097,-513.19343846,0.00038904,8]
[394874324,1764045078107,-558.91367246,0.00038904,8]
[394874325,1764045078121,-539.57029466,0.00038904,8]
[394874326,1764045078131,-500.0,0.00038904,8]
[394874327,1764045078141,-500.0,0.00038904,8]
[394874328,1764045078150,-529.74594317,0.00038904,8]
[394874329,1764045078161,-403.85415839,0.00038904,8]
[394874330,1764045078171,-500.0,0.00038904,8]
[394874331,1764045078180,-526.97185755,0.00038904,8]
[394874332,1764045078191,-535.0216773,0.00038904,8]
[394874333,1764045078202,-500.0,0.00038904,8]
[394874334,1764045078211,-500.0,0.00038904,8]
[394874335,1764045078220,-469.43650061,0.00038904,8]
[394874336,1764045078230,-4448.47,0.00038904,2]
[394874337,1764045078239,-150.0,0.00038937,7]
[394874338,1764045078249,-150.0,0.00038937,7]
[394874339,1764045078259,-150.0,0.00038937,7]
[394874340,1764045078268,-150.0,0.00038937,7]
[394874341,1764045078279,-282.27715496,0.00038945,15]
[394874342,1764045078288,-200.0,0.00039,5]
[394874343,1764045078299,-500.0,0.00039,60]
[394874344,1764045078310,-150.0,0.00039074,7]
[394874345,1764045078319,-9506.90192051,0.00039078,2]
[394874346,1764045078329,-150.0,0.00039165,7]
[394874347,1764045078338,-500.0,0.00039178,8]
[394874348,1764045078348,-451.86174087,0.00039178,8]
[394874349,1764045078358,-287.14671746,0.00039178,8]
[394874350,1764045078367,-527.49957095,0.00039178,8]
[394874351,1764045078377,-500.0,0.00039178,8]
[394874352,1764045078387,-500.0,0.00039178,8]
[394874353,1764045078396,-500.11050618,0.00039178,8]
[394874354,1764045078406,-511.71140907,0.00039178,8]
[394874355,1764045078415,-500.0,0.00039178,8]
[394874356,1764045078424,-500.0,0.00039178,8]
[394874357,1764045078434,-500.0,0.00039178,8]
[394874358,1764045078443,-305.53099203,0.00039178,8]
[394874359,1764045078455,-504.17312641,0.00039178,8]
[394874360,1764045078465,-560.73473292,0.00039178,8]
[394874361,1764045078474,-565.99955214,0.00039178,8]
[394874362,1764045078484,-530.42207518,0.00039178,8]
[394874363,1764045078493,-634.58973622,0.00039178,8]
[394874364,1764045078503,-500.0,0.00039178,8]
[394874365,1764045078513,-507.82223754,0.00039178,8]
[394874366,1764045078523,-500.0,0.00039178,8]
[394874367,1764045078533,-500.0,0.00039178,8]
[394874368,1764045078543,-500.0,0.00039178,8]
[394874369,1764045078552,-500.0,0.00039178,8]
[394874370,1764045078562,-508.02112149,0.00039178,8]
[394874371,1764045078571,-500.0,0.00039178,8]
[394874372,1764045078580,-500.0,0.00039178,8]
[394874373,1764045078590,-524.97139644,0.00039178,8]
[394874374,1764045078600,-518.92167739,0.00039178,8]
[394874375,1764045078610,-509.36560191,0.00039178,8]
[394874376,1764045078619,-500.0,0.00039178,8]
[394874377,1764045078628,-514.40752539,0.00039178,8]
[394874378,1764045078637,-219.68685131,0.00039178,8]
[394874379,1764045078646,-500.0,0.00039178,8]
[394874380,1764045078655,-500.0,0.00039178,8]
[394874381,1764045078664,-519.92680029,0.00039178,8]
[394874382,1764045078673,-284.85237125,0.00039178,8]
[394874383,1764045078683,-500.0,0.00039178,8]
[394874384,1764045078692,-340.01585509,0.00039178,8]
[394874385,1764045078702,-336.29048188,0.00039178,8]
[394874386,1764045078711,-500.0,0.00039178,8]
[394874387,1764045078720,-529.84311651,0.00039178,8]
[394874388,1764045078730,-391.96675733,0.00039178,8]
[394874389,1764045078739,-519.46,0.00039178,8]
[394874390,1764045078748,-500.0,0.00039178,8]
[394874391,1764045078757,-500.0,0.00039178,8]
[394874392,1764045078767,-500.0,0.00039178,8]
[394874393,1764045078776,-500.0,0.00039178,8]
[394874394,1764045078785,-500.0,0.00039178,8]
[394874395,1764045078795,-500.0,0.00039178,8]
[394874396,1764045078804,-500.0,0.00039178,8]
[394874397,1764045078814,-500.0,0.00039178,8]
[394874398,1764045078823,-500.0,0.00039178,8]
[394874399,1764045078833,-500.0,0.00039178,8]
[394874400,1764045078843,-512.50033905,0.00039178,8]
[394874401,1764045078852,-584.58547528,0.00039178,8]
[394874402,1764045078861,-500.0,0.00039178,8]
[394874403,1764045078870,-506.95969326,0.00039178,8]
[394874404,1764045078879,-500.0,0.00039178,8]
[394874405,1764045078888,-574.42,0.00039178,8]
[394874406,1764045078897,-514.17995369,0.00039178,8]
[394874407,1764045078907,-416.15161537,0.00039178,8]
[394874408,1764045078918,-500.86891045,0.00039178,8]
[394874409,1764045078928,-500.0,0.00039178,8]
[394874410,1764045078937,-548.62778537,0.00039178,8]
[394874411,1764045078947,-190.599703,0.00039178,8]
[394874412,1764045078956,-500.0,0.00039178,8]
[394874413,1764045078965,-510.97467976,0.00039178,8]
[394874414,1764045078974,-500.0,0.00039178,8]
[394874415,1764045078983,-500.0,0.00039178,8]
[394874416,1764045078992,-500.0,0.00039178,8]
[394874417,1764045079002,-578.89435223,0.00039178,8]
[394874418,1764045079011,-500.0,0.00039178,8]
[394874419,1764045079020,-500.0,0.00039178,8]
[394874420,1764045079030,-494.00670319,0.00039178,8]
[394874422,1764045079039,-500.0,0.00039178,8]
[394874423,1764045079049,-500.0,0.00039178,8]
[394874424,1764045079059,-500.0,0.00039178,8]
[394874425,1764045079068,-500.0,0.00039178,8]
[394874426,1764045079078,-268.52682184,0.00039178,8]
[394874427,1764045079087,-573.14,0.00039178,8]
[394874428,1764045079096,-500.0,0.00039178,120]
[394874429,1764045079105,-500.0,0.00039178,8]
[394874430,1764045079115,-500.0,0.00039178,8]
[394874431,1764045079124,-500.0,0.00039178,8]
[394874432,1764045079136,-448.61259616,0.00039178,8]
[394874433,1764045079146,-500.0,0.00039178,8]
[394874434,1764045079155,-500.0,0.00039178,8]
[394874435,1764045079164,-500.0,0.00039178,8]
[394874436,1764045079174,-575.41919087,0.00039178,8]
[394874437,1764045079184,-322.83234939,0.00039178,8]
[394874438,1764045079193,-500.0,0.00039178,8]
[394874439,1764045079203,-508.61147501,0.00039178,8]
[394874440,1764045079212,-532.13055304,0.00039178,8]
[394874441,1764045079221,-500.0,0.00039178,8]
[394874442,1764045079230,-514.33739035,0.00039178,8]
[394874443,1764045079239,-500.0,0.00039178,8]
[394874444,1764045079248,-500.0,0.00039178,8]
[394874445,1764045079258,-502.29316864,0.00039178,2]
[394874446,1764045079268,-500.0,0.00039178,8]
[394874447,1764045079277,-418.20252942,0.00039178,8]
[394874448,1764045079286,-503.12478319,0.00039178,8]
[394874449,1764045079295,-500.0,0.00039178,8]
[394874450,1764045079305,-500.0,0.00039178,8]
[394874451,1764045079316,-500.0,0.00039178,8]
[394874452,1764045079325,-505.65883227,0.00039178,8]
[394874453,1764045079336,-500.0,0.00039178,8]
[394874454,1764045079345,-525.39860684,0.00039178,8]
[394874455,1764045079355,-500.0,0.00039178,8]
[394874456,1764045079364,-508.14447632,0.00039178,8]
[394874457,1764045079373,-528.69839381,0.00039178,8]
[394874458,1764045079382,-1000.0,0.00039178,8]
[394874459,1764045079392,-512.42828214,0.00039178,8]
[394874460,1764045079401,-175.11378007,0.00039178,8]
[394874461,1764045079410,-505.42915773,0.00039178,8]
[394874462,1764045079420,-500.0,0.00039178,8]
[394874463,1764045079429,-549.70553116,0.00039178,8]
[394874464,1764045079438,-500.0,0.00039178,8]
[394874465,1764045079448,-184.64825379,0.00039178,8]
[394874466,1764045079457,-527.73920281,0.00039178,8]
[394874467,1764045079467,-500.0,0.00039178,8]
[394874468,1764045079476,-506.5408187,0.00039178,8]
[394874469,1764045079485,-155.97431505,0.00039178,8]
[394874470,1764045079495,-506.47681077,0.00039178,8]
[394874471,1764045079504,-500.0,0.00039178,8]
[394874472,1764045079513,-513.37972013,0.00039178,120]
[394874473,1764045079522,-500.0,0.00039178,8]
[394874474,1764045079531,-503.66426912,0.00039178,8]
[394874475,1764045079541,-500.0,0.00039178,8]
[394874476,1764045079550,-512.80973614,0.00039178,8]
[394874477,1764045079561,-500.0,0.00039178,8]
[394874478,1764045079571,-500.0,0.00039178,8]
[394874479,1764045079580,-500.0,0.00039178,8]
[394874480,1764045079589,-504.06998033,0.00039178,8]
[394874481,1764045079599,-500.0,0.00039178,8]
[394874482,1764045079608,-500.0,0.00039178,8]
[394874483,1764045079618,-520.279914,0.00039178,8]
[394874484,1764045079627,-513.22,0.00039178,8]
[394874485,1764045079636,-500.0,0.00039178,8]
[394874486,1764045079645,-641.78714087,0.00039178,8]
[394874487,1764045079654,-505.06109425,0.00039178,8]
[394874488,1764045079664,-500.0,0.00039178,8]
[394874489,1764045079672,-500.0,0.00039178,8]
[394874490,1764045079682,-500.0,0.00039178,8]
[394874491,1764045079691,-500.0,0.00039178,8]
[394874492,1764045079700,-500.0,0.00039178,8]
[394874493,1764045079710,-500.0,0.00039178,8]
[394874494,1764045079719,-500.0,0.00039178,8]
[394874495,1764045079728,-508.07869416,0.00039178,8]
[394874496,1764045079737,-500.0,0.00039178,8]
[394874497,1764045079747,-500.0,0.00039178,8]
[394874498,1764045079756,-500.0,0.00039178,8]
[394874499,1764045079765,-687.91,0.00039178,8]
[394874500,1764045079775,-500.0,0.00039178,8]
[394874501,1764045079784,-530.53778642,0.00039178,8]
[394874502,1764045079794,-500.0,0.00039178,8]
[394874503,1764045079803,-500.0,0.00039178,8]
[394874504,1764045079909,-500.0,0.00039178,8]
[394874505,1764045079919,-500.0,0.00039178,8]
[394874506,1764045079928,-500.0,0.00039178,8]
[394874507,1764045079938,-542.73017495,0.00039178,8]
[394874508,1764045079948,-500.0,0.00039178,8]
[394874509,1764045079957,-151.82144732,0.00039178,8]
[394874510,1764045079967,-500.0,0.00039178,8]
[394874511,1764045079976,-620.09513127,0.00039178,8]
[394874512,1764045079985,-500.0,0.00039178,8]
[394874513,1764045079994,-500.0,0.00039178,8]
[394874514,1764045080004,-500.0,0.00039178,2]
[394874515,1764045080013,-500.0,0.00039178,8]
[394874516,1764045080022,-500.0,0.00039178,8]
[394874517,1764045080031,-498.34155092,0.00039178,8]
[394874518,1764045080041,-559.31832543,0.00039178,8]
[394874519,1764045080051,-500.0,0.00039178,8]
[394874520,1764045080064,-500.0,0.00039178,8]
[394874521,1764045080074,-508.18563761,0.00039178,8]
[394874522,1764045080084,-542.47781199,0.00039178,8]
[394874523,1764045080094,-260.2597546,0.00039178,8]
[394874524,1764045080103,-500.0,0.00039178,8]
[394874525,1764045080113,-503.6907864,0.00039178,8]
[394874526,1764045080123,-500.0,0.00039178,8]
[394874527,1764045080135,-500.0,0.00039178,8]
[394874528,1764045080148,-500.0,0.00039178,8]
[394874529,1764045080158,-500.0,0.00039178,8]
[394874530,1764045080168,-500.0,0.00039178,8]
[394874531,1764045080176,-500.0,0.00039178,8]
[394874532,1764045080186,-500.0,0.00039178,8]
[394874533,1764045080195,-500.0,0.00039178,8]
[394874534,1764045080204,-500.0,0.00039178,8]
[394874535,1764045080213,-500.0,0.00039178,8]
[394874536,1764045080221,-507.48073924,0.00039178,8]
[394874537,1764045080230,-197.8895938,0.00039178,8]
[394874538,1764045080238,-500.0,0.00039178,8]
[394874539,1764045080247,-504.91023947,0.00039178,8]
[394874540,1764045080256,-500.0,0.00039178,8]
[394874541,1764045080265,-216.1,0.00039178,8]
[394874542,1764045080274,-500.0,0.00039178,8]
[394874543,1764045080283,-499.04757821,0.00039178,8]
[394874544,1764045080292,-500.0,0.00039178,8]
[394874545,1764045080301,-453.50632574,0.00039178,8]
[394874546,1764045080313,-500.0,0.00039178,8]
[394874547,1764045080322,-603.89385141,0.00039178,8]
[394874548,1764045080331,-637.55437965,0.00039178,8]
[394874549,1764045080340,-546.88761826,0.00039178,8]
[394874550,1764045080350,-500.0,0.00039178,8]
[394874551,1764045080360,-500.0,0.00039178,8]
[394874552,1764045080370,-500.0,0.00039178,8]
[394874553,1764045080380,-500.0,0.00039178,8]
[394874554,1764045080389,-500.0,0.00039178,8]
[394874555,1764045080398,-500.0,0.00039178,8]
[394874556,1764045080408,-539.25739778,0.00039178,8]
[394874557,1764045080417,-500.0,0.00039178,8]
[394874558,1764045080426,-500.0,0.00039178,8]
[394874559,1764045080434,-500.0,0.00039178,8]
[394874560,1764045080444,-500.0,0.00039178,8]
[394874561,1764045080453,-500.0,0.00039178,8]
[394874562,1764045080463,-500.0,0.00039178,8]
[394874563,1764045080473,-500.0,0.00039178,8]
[394874564,1764045080482,-500.0,0.00039178,8]
[394874565,1764045080491,-500.0,0.00039178,8]
[394874566,1764045080500,-500.0,0.00039178,8]
[394874567,1764045080509,-500.0,0.00039178,8]
[394874568,1764045080519,-500.0,0.00039178,8]
[394874569,1764045080528,-511.95403132,0.00039178,8]
[394874570,1764045080537,-576.19572709,0.00039178,8]
[394874571,1764045080547,-511.79598035,0.00039178,8]
[394874572,1764045080557,-1570.0,0.000392,2]
[394874573,1764045080566,-150.0,0.0003923,7]
[394874574,1764045080576,-150.0,0.00039347,7]
[394874575,1764045080585,-150.0,0.00039347,7]
[394874576,1764045080594,-150.0,0.00039347,7]
[394874577,1764045080604,-150.0,0.00039347,7]
[394874578,1764045080613,-4627.56,0.000394,14]
[394874579,1764045080622,-500.0,0.00039452,8]
[394874580,1764045080633,-500.0,0.00039452,8]
[394874581,1764045080642,-500.0,0.00039452,8]
[394874582,1764045080652,-506.04534857,0.00039452,8]
[394874583,1764045080661,-179.89810329,0.00039452,8]
[394874584,1764045080672,-500.0,0.00039452,8]
[394874585,1764045080682,-500.0,0.00039452,8]
[394874586,1764045080693,-500.0,0.00039452,8]
[394874587,1764045080703,-500.0,0.00039452,8]
[394874588,1764045080712,-500.0,0.00039452,8]
[394874589,1764045080721,-513.39074154,0.00039452,8]
[394874590,1764045080730,-500.0,0.00039452,8]
[394874591,1764045080740,-500.0,0.00039452,8]
[394874592,1764045080749,-179.55890652,0.00039452,8]
[394874593,1764045080758,-500.0,0.00039452,8]
[394874594,1764045080767,-253.3900799,0.00039452,8]
[394874595,1764045080777,-500.0,0.00039452,8]
[394874596,1764045080786,-500.0,0.00039452,8]
[394874597,1764045080795,-519.46,0.00039452,8]
[394874598,1764045080805,-500.0,0.00039452,8]
[394874599,1764045080814,-500.0,0.00039452,8]
[394874600,1764045080824,-500.0,0.00039452,8]
[394874601,1764045080833,-542.29350007,0.00039452,8]
[394874602,1764045080842,-500.0,0.00039452,8]
[394874603,1764045080854,-500.0,0.00039452,8]
[394874604,1764045080863,-535.51036697,0.00039452,8]
[394874605,1764045080872,-500.0,0.00039452,8]
[394874606,1764045080881,-500.0,0.00039452,8]
[394874607,1764045080891,-502.60239723,0.00039452,8]
[394874608,1764045080902,-500.0,0.00039452,8]
[394874609,1764045080912,-500.0,0.00039452,8]
[394874610,1764045080922,-500.0,0.00039452,8]
[394874611,1764045080931,-500.0,0.00039452,8]
[394874612,1764045080940,-500.0,0.00039452,8]
[394874613,1764045080950,-168.17947634,0.00039452,8]
[394874614,1764045080959,-529.17157999,0.00039452,8]
[394874615,1764045080969,-500.0,0.00039452,8]
[394874616,1764045080978,-279.6476337,0.00039452,8]
[394874617,1764045080990,-500.0,0.00039452,8]
[394874618,1764045080999,-500.0,0.00039452,8]
[394874619,1764045081008,-463.90810618,0.00039452,8]
[394874620,1764045081018,-500.0,0.00039452,8]
[394874621,1764045081027,-186.04677359,0.00039452,120]
[394874622,1764045081036,-561.0214675,0.00039452,8]
[394874623,1764045081046,-500.0,0.00039452,8]
[394874624,1764045081055,-431.41907015,0.00039452,8]
[394874625,1764045081064,-500.0,0.00039452,8]
[394874626,1764045081073,-500.0,0.00039452,8]
[394874627,1764045081084,-500.0,0.00039452,8]
[394874628,1764045081093,-500.0,0.00039452,8]
[394874629,1764045081103,-639.82282917,0.00039452,8]
[394874630,1764045081113,-500.0,0.00039452,8]
[394874631,1764045081123,-500.0,0.00039452,8]
[394874632,1764045081136,-509.59891394,0.00039452,8]
[394874633,1764045081145,-409.16703653,0.00039452,8]
[394874634,1764045081155,-450.33870855,0.00039452,8]
[394874635,1764045081166,-500.0,0.00039452,8]
[394874636,1764045081175,-262.80680713,0.00039452,8]
[394874637,1764045081191,-500.0,0.00039452,8]
[394874638,1764045081203,-1000.0,0.00039452,8]
[394874639,1764045081213,-500.0,0.00039452,8]
[394874640,1764045081223,-560.75338493,0.00039452,8]
[394874641,1764045081232,-500.0,0.00039452,8]
[394874642,1764045081242,-500.0,0.00039452,8]
[394874643,1764045081251,-500.0,0.00039452,8]
[394874644,1764045081260,-500.0,0.00039452,8]
[394874645,1764045081270,-500.0,0.00039452,8]
[394874646,1764045081279,-390.48329683,0.00039452,8]
[394874647,1764045081288,-500.0,0.00039452,8]
[394874648,1764045081298,-500.0,0.00039452,8]
[394874649,1764045081308,-500.0,0.00039452,8]
[394874650,1764045081318,-513.22,0.00039452,8]
[394874651,1764045081327,-500.0,0.00039452,8]
[394874652,1764045081337,-500.0,0.00039452,8]
[394874653,1764045081347,-500.0,0.00039452,8]
[394874655,1764045081358,-500.0,0.00039452,8]
[394874656,1764045081369,-500.0,0.00039452,8]
[394874657,1764045081378,-221.87443751,0.00039452,8]
[394874658,1764045081388,-248.78679969,0.00039452,8]
[394874659,1764045081397,-175.89125345,0.00039452,8]
[394874660,1764045081406,-532.61021944,0.00039452,8]
[394874661,1764045081415,-589.30308125,0.00039452,8]
[394874662,1764045081424,-687.91,0.00039452,8]
[394874663,1764045081434,-500.0,0.00039452,8]
[394874664,1764045081443,-500.0,0.00039452,8]
[394874665,1764045081452,-528.18257899,0.00039452,8]
[394874666,1764045081462,-500.0,0.00039452,8]
[394874667,1764045081472,-594.22006123,0.00039452,8]
[394874668,1764045081481,-335.08233218,0.00039452,8]
[394874669,1764045081490,-500.0,0.00039452,8]
[394874670,1764045081500,-358.09293797,0.00039452,8]
[394874671,1764045081510,-463.7158677,0.00039452,8]
[394874672,1764045081518,-500.0,0.00039452,8]
[394874673,1764045081528,-441.77911382,0.00039452,2]
[394874674,1764045081538,-423.95958663,0.00039452,8]
[394874675,1764045081547,-500.0,0.00039452,8]
[394874676,1764045081557,-500.0,0.00039452,8]
[394874677,1764045081567,-500.0,0.00039452,8]
[394874678,1764045081576,-504.7067,0.00039452,8]
[394874679,1764045081585,-500.0,0.00039452,8]
[394874680,1764045081594,-500.0,0.00039452,8]
[394874681,1764045081603,-500.0,0.00039452,8]
[394874682,1764045081612,-500.0,0.00039452,8]
[394874683,1764045081622,-500.0,0.00039452,8]
[394874684,1764045081724,-500.0,0.00039452,8]
[394874685,1764045081736,-500.0,0.00039452,8]
[394874686,1764045081746,-275.64893966,0.00039452,8]
[394874687,1764045081756,-500.0,0.00039452,8]
[394874688,1764045081766,-609.91579271,0.00039452,8]
[394874689,1764045081775,-491.36261407,0.00039452,8]
[394874690,1764045081784,-500.0,0.00039452,8]
[394874691,1764045081794,-500.0,0.00039452,8]
[394874692,1764045081803,-500.0,0.00039452,8]
[394874693,1764045081812,-199.69022418,0.00039452,8]
[394874694,1764045081822,-500.0,0.00039452,8]
[394874695,1764045081834,-500.0,0.00039452,8]
[394874696,1764045081844,-500.0,0.00039452,8]
[394874697,1764045081853,-500.0,0.00039452,8]
[394874698,1764045081863,-500.0,0.00039452,8]
[394874699,1764045081873,-500.0,0.00039452,8]
[394874700,1764045081883,-500.0,0.00039452,8]
[394874701,1764045081892,-500.0,0.00039452,8]
[394874702,1764045081901,-273.77609255,0.00039452,8]
[394874703,1764045081911,-500.0,0.00039452,8]
[394874704,1764045081921,-500.0,0.00039452,8]
[394874705,1764045081930,-500.0,0.00039452,8]
[394874706,1764045081940,-500.0,0.00039452,8]
[394874707,1764045081950,-517.70467294,0.00039452,8]
[394874708,1764045081964,-500.0,0.00039452,8]
[394874709,1764045081974,-343.95245345,0.00039452,8]
[394874710,1764045081984,-500.0,0.00039452,8]
[394874711,1764045081994,-500.10522173,0.00039452,8]
[394874712,1764045082003,-1999.99,0.000395,2]
[394874713,1764045082013,-2000.0,0.000395,2]
[394874714,1764045082022,-2000.0,0.000395,2]
[394874715,1764045082032,-2000.0,0.000395,2]
[394874716,1764045082041,-2061.1,0.000395,2]
[394874717,1764045082051,-4627.56,0.000395,14]
[394874718,1764045082062,-674.10610026,0.000396,120]
[394874719,1764045082071,-27544.3796762,0.00039613,2]
[394874720,1764045082289,-577.4131699,0.00039613,2]
[394874721,1764045082300,-2285.84334041,0.00039613,2]
[394874722,1764045082318,-151.0,0.00024658,7]
[394874723,1764045082327,-9592.36381349,0.00039613,2]
[394874724,1764045082336,-150.0,0.0003962,7]
[394874725,1764045082345,-150.0,0.0003962,7]
[394874726,1764045082355,-150.0,0.0003962,7]
[394874727,1764045082364,-150.0,0.0003962,7]
[394874728,1764045082373,-7908.01075909,0.00039626,2]
[394874729,1764045082382,-661.94,0.00039654,2]
[394874730,1764045082392,-623.47,0.000397,30]
[394874731,1764045082402,-500.0,0.00039726,8]
[394874732,1764045082411,-500.0,0.00039726,8]
[394874733,1764045082420,-512.51550694,0.00039726,8]
[394874734,1764045082430,-186.12992748,0.00039726,8]
[394874735,1764045082438,-184.39985865,0.00039726,8]
[394874736,1764045082447,-429.89924605,0.00039726,8]
[394874737,1764045082457,-500.99654301,0.00039726,8]
[394874738,1764045082466,-331.59256795,0.00039726,8]
[394874739,1764045082475,-500.0,0.00039726,8]
[394874740,1764045082485,-210.62990639,0.00039726,8]
[394874741,1764045082495,-500.0,0.00039726,8]
[394874742,1764045082504,-500.0,0.00039726,8]
[394874743,1764045082513,-500.0,0.00039726,8]
[394874744,1764045082523,-519.46,0.00039726,8]
[394874745,1764045082532,-187.52164622,0.00039726,8]
[394874746,1764045082543,-500.0,0.00039726,8]
[394874747,1764045082555,-447.66891312,0.00039726,8]
[394874748,1764045082568,-500.0,0.00039726,8]
[394874749,1764045082578,-500.0,0.00039726,8]
[394874750,1764045082596,-500.0,0.00039726,8]
[394874751,1764045082610,-500.0,0.00039726,8]
[394874752,1764045082620,-500.0,0.00039726,8]
[394874753,1764045082631,-505.7389254,0.00039726,8]
[394874754,1764045082641,-520.68310653,0.00039726,8]
[394874755,1764045082651,-500.0,0.00039726,8]
[394874756,1764045082661,-611.28441038,0.00039726,8]
[394874757,1764045082671,-324.10556055,0.00039726,8]
[394874758,1764045082681,-500.0,0.00039726,8]
[394874759,1764045082691,-500.0,0.00039726,8]
[394874760,1764045082701,-500.0,0.00039726,8]
[394874761,1764045082710,-265.045008,0.00039726,8]
[394874762,1764045082719,-283.09106147,0.00039726,8]
[394874763,1764045082729,-500.0,0.00039726,8]
[394874764,1764045082739,-500.0,0.00039726,8]
[394874765,1764045082749,-500.0,0.00039726,8]
[394874766,1764045082759,-500.0,0.00039726,8]
[394874767,1764045082768,-500.0,0.00039726,8]
[394874768,1764045082778,-475.86168764,0.00039726,8]
[394874769,1764045082787,-306.18055815,0.00039726,8]
[394874770,1764045082797,-563.03749522,0.00039726,8]
[394874771,1764045082807,-500.0,0.00039726,8]
[394874772,1764045082817,-594.14310693,0.00039726,8]
[394874773,1764045082827,-500.0,0.00039726,8]
[394874774,1764045082837,-500.0,0.00039726,8]
[394874775,1764045082847,-500.0,0.00039726,8]
[394874776,1764045082858,-552.57452194,0.00039726,8]